[Event "*** Titled Tuesday Blitz"]
[Site "Chess.com"]
[Date "2020.04.28"]
[Round "7"]
[White "albano87"]
[Black "nfds"]
[Result "1-0"]
[WhiteElo "2394"]
[BlackElo "2496"]
[TimeControl "180+1"]
[EndTime "11:18:50 PDT"]
[Termination "albano87 won by resignation"]

1. e4 {[%clk 0:03:00.7]} 1... e5 {[%clk 0:02:56.4]} 2. d4 {[%clk 0:02:59.6]}
2... exd4 {[%clk 0:02:55.6]} 3. Qxd4 {[%clk 0:03:00.5]} 3... Nc6 {[%clk
0:02:54.6]} 4. Qe3 {[%clk 0:03:00.7]} 4... b6 {[%clk 0:02:53.6]} 5. Nc3 {[%clk
0:03:00.8]} 5... Bc5 {[%clk 0:02:53.3]} 6. Qg3 {[%clk 0:03:00.2]} 6... Kf8
{[%clk 0:02:51.8]} 7. Nd5 {[%clk 0:02:57.5]} 7... Bd6 {[%clk 0:02:50.8]} 8. f4
{[%clk 0:02:55.3]} 8... Nge7 {[%clk 0:02:47.5]} 9. Bc4 {[%clk 0:02:49.8]} 9...
Bb7 {[%clk 0:02:39.9]} 10. Bd2 {[%clk 0:02:47.9]} 10... Nxd5 {[%clk 0:02:28.4]}
11. Bxd5 {[%clk 0:02:46.5]} 11... Na5 {[%clk 0:02:15.2]} 12. Bxb7 {[%clk
0:02:44.4]} 12... Nxb7 {[%clk 0:02:15.3]} 13. Bc3 {[%clk 0:02:43.7]} 13... Rg8
{[%clk 0:02:12.7]} 14. O-O-O {[%clk 0:02:42.7]} 14... Qe7 {[%clk 0:02:07.8]} 15.
e5 {[%clk 0:02:38.9]} 15... Bc5 {[%clk 0:02:07.9]} 16. Nf3 {[%clk 0:02:37.4]}
16... h6 {[%clk 0:02:02.4]} 17. Nh4 {[%clk 0:02:37.4]} 17... Qe6 {[%clk
0:01:57.7]} 18. Kb1 {[%clk 0:02:36.1]} 18... Be7 {[%clk 0:01:46.5]} 19. Nf3
{[%clk 0:02:12.2]} 19... Nc5 {[%clk 0:01:27]} 20. Nd4 {[%clk 0:02:09.6]} 20...
Qg6 {[%clk 0:01:27.1]} 21. Qf3 {[%clk 0:02:08.1]} 21... Qe4 {[%clk 0:01:23.7]}
22. Rhe1 {[%clk 0:02:06]} 22... Qxf3 {[%clk 0:01:23.2]} 23. Nxf3 {[%clk
0:02:06.9]} 23... g6 {[%clk 0:01:11.6]} 24. Nd4 {[%clk 0:01:58.1]} 24... Na4
{[%clk 0:01:06.5]} 25. Nb5 {[%clk 0:01:52.8]} 25... Nxc3+ {[%clk 0:01:02.7]} 26.
bxc3 {[%clk 0:01:53.1]} 26... c6 {[%clk 0:00:57.6]} 27. Nc7 {[%clk 0:01:47.9]}
27... Rd8 {[%clk 0:00:53.5]} 28. Rd3 {[%clk 0:01:44.9]} 28... d5 {[%clk
0:00:47.5]} 29. e6 {[%clk 0:01:31.2]} 29... Bd6 {[%clk 0:00:38.2]} 30. Rde3
{[%clk 0:01:19.4]} 30... Bxc7 {[%clk 0:00:20.4]} 31. e7+ {[%clk 0:01:19.2]}
31... Kg7 {[%clk 0:00:21.3]} 32. exd8=Q {[%clk 0:01:19.2]} 32... Rxd8 {[%clk
0:00:21.3]} 33. g3 {[%clk 0:01:19.4]} 33... Bd6 {[%clk 0:00:19.9]} 34. Re8
{[%clk 0:01:16.9]} 34... Rd7 {[%clk 0:00:19.9]} 35. Rc8 {[%clk 0:01:17.5]} 35...
c5 {[%clk 0:00:18.5]} 36. Ree8 {[%clk 0:01:17.8]} 36... Be7 {[%clk 0:00:15.7]}
37. a4 {[%clk 0:01:14.6]} 37... Kf6 {[%clk 0:00:14.9]} 38. g4 {[%clk 0:01:12.4]}
38... h5 {[%clk 0:00:13.8]} 39. h3 {[%clk 0:01:10.9]} 39... hxg4 {[%clk
0:00:13.4]} 40. hxg4 {[%clk 0:01:11.8]} 40... Bd6 {[%clk 0:00:10]} 41. Red8
{[%clk 0:01:06.8]} 41... Rxd8 {[%clk 0:00:07.1]} 42. Rxd8 {[%clk 0:01:07.7]}
42... Ke6 {[%clk 0:00:04.2]} 43. f5+ {[%clk 0:01:05.9]} 43... gxf5 {[%clk
0:00:04.3]} 44. gxf5+ {[%clk 0:01:06.8]} 44... Ke5 {[%clk 0:00:04.4]} 45. Ra8
{[%clk 0:01:07.7]} 45... Kxf5 {[%clk 0:00:01.3]} 46. Rxa7 {[%clk 0:01:07.7]}
46... Ke6 {[%clk 0:00:02.2]} 47. Rb7 {[%clk 0:01:07.8]} 47... f5 {[%clk
0:00:02.5]} 48. Rxb6 {[%clk 0:01:07.9]} 48... f4 {[%clk 0:00:03]} 49. Kc1 {[%clk
0:01:05]} 49... d4 {[%clk 0:00:02.7]} 50. cxd4 {[%clk 0:01:04.1]} 50... cxd4
{[%clk 0:00:03.6]} 51. Kd2 {[%clk 0:01:04.8]} 51... Kd5 {[%clk 0:00:04.5]} 52.
Kd3 {[%clk 0:01:03.6]} 52... f3 {[%clk 0:00:04.2]} 53. Rb1 {[%clk 0:01:04.4]}
53... Bc5 {[%clk 0:00:03.8]} 54. Rf1 {[%clk 0:01:02.9]} 54... Kc6 {[%clk
0:00:04.1]} 55. Rxf3 {[%clk 0:01:03]} 55... Kb7 {[%clk 0:00:04.5]} 56. Rf5
{[%clk 0:01:03.3]} 56... Bb6 {[%clk 0:00:04.4]} 57. Rb5 {[%clk 0:01:02.1]} 57...
Ka6 {[%clk 0:00:04.4]} 58. Rxb6+ {[%clk 0:01:03]} 58... Kxb6 {[%clk 0:00:04.2]}
59. Kxd4 {[%clk 0:01:03.9]} 59... Ka5 {[%clk 0:00:04.7]} 60. Kd5 {[%clk
0:01:04.6]} 60... Kb4 {[%clk 0:00:04.7]} 61. c4 {[%clk 0:01:05.5]} 61... Ka5
{[%clk 0:00:05.3]} 62. c5 {[%clk 0:01:05.8]} 62... Ka6 {[%clk 0:00:06.2]} 63.
Kd6 {[%clk 0:01:06.3]} 63... Kb7 {[%clk 0:00:07.1]} 64. Kd7 {[%clk 0:01:07]}
64... Ka6 {[%clk 0:00:05.6]} 65. c6 {[%clk 0:01:07.9]} 65... Ka5 {[%clk
0:00:05.8]} 66. c7 {[%clk 0:01:08.8]} 66... Kb4 {[%clk 0:00:05]} 67. c8=Q {[%clk
0:01:09.7]} 67... Kxa4 {[%clk 0:00:05.9]} 1-0

[Event "*** Titled Tuesday Blitz"]
[Site "Chess.com"]
[Date "2020.04.28"]
[Round "7"]
[White "MusicCityMaster"]
[Black "GMMatamoros"]
[Result "1-0"]
[WhiteElo "2294"]
[BlackElo "2517"]
[TimeControl "180+1"]
[EndTime "11:18:52 PDT"]
[Termination "MusicCityMaster won on time"]

1. d4 {[%clk 0:03:00.9]} 1... Nf6 {[%clk 0:02:58.6]} 2. c4 {[%clk 0:03:00.7]}
2... c5 {[%clk 0:02:59.1]} 3. d5 {[%clk 0:03:00.4]} 3... b5 {[%clk 0:02:59.1]}
4. cxb5 {[%clk 0:03:00]} 4... a6 {[%clk 0:02:59.6]} 5. bxa6 {[%clk 0:02:58.3]}
5... Bxa6 {[%clk 0:02:59.6]} 6. Nc3 {[%clk 0:02:58.1]} 6... d6 {[%clk
0:03:00.1]} 7. f4 {[%clk 0:02:57]} 7... g6 {[%clk 0:02:55.6]} 8. Nf3 {[%clk
0:02:57.1]} 8... Qa5 {[%clk 0:02:55.2]} 9. Nd2 {[%clk 0:02:39.8]} 9... Bg7
{[%clk 0:02:50.6]} 10. e4 {[%clk 0:02:35.2]} 10... O-O {[%clk 0:02:36.1]} 11.
Bxa6 {[%clk 0:02:24.8]} 11... Qxa6 {[%clk 0:02:35.5]} 12. Qe2 {[%clk 0:02:24.5]}
12... Nbd7 {[%clk 0:02:33.4]} 13. Nc4 {[%clk 0:02:01.4]} 13... Ne8 {[%clk
0:02:29.4]} 14. a4 {[%clk 0:01:54.1]} 14... Nc7 {[%clk 0:02:26.2]} 15. Ra3
{[%clk 0:01:44.7]} 15... Rfb8 {[%clk 0:02:23]} 16. O-O {[%clk 0:01:28]} 16...
Nb6 {[%clk 0:01:41.3]} 17. Nxb6 {[%clk 0:01:16.3]} 17... Qxe2 {[%clk 0:01:39.8]}
18. Nxe2 {[%clk 0:01:16]} 18... Rxb6 {[%clk 0:01:40.7]} 19. b3 {[%clk
0:00:52.7]} 19... Rab8 {[%clk 0:01:24.7]} 20. Rf3 {[%clk 0:00:43.3]} 20... f5
{[%clk 0:01:21.8]} 21. a5 {[%clk 0:00:31.2]} 21... Ra6 {[%clk 0:01:15.2]} 22.
exf5 {[%clk 0:00:27.8]} 22... Nb5 {[%clk 0:01:01.8]} 23. Ra4 {[%clk 0:00:24.3]}
23... Nd4 {[%clk 0:00:57.4]} 24. Nxd4 {[%clk 0:00:21.5]} 24... Bxd4+ {[%clk
0:00:58.3]} 25. Kf1 {[%clk 0:00:21.2]} 25... gxf5 {[%clk 0:00:58.3]} 26. Bd2
{[%clk 0:00:14]} 26... Kf7 {[%clk 0:00:49.8]} 27. Ke2 {[%clk 0:00:14.2]} 27...
Bf6 {[%clk 0:00:38.7]} 28. h3 {[%clk 0:00:13.4]} 28... h5 {[%clk 0:00:37.8]} 29.
g3 {[%clk 0:00:11.7]} 29... e6 {[%clk 0:00:31.7]} 30. dxe6+ {[%clk 0:00:08.6]}
30... Kxe6 {[%clk 0:00:32.6]} 31. Re3+ {[%clk 0:00:08.2]} 31... Kd5 {[%clk
0:00:31.7]} 32. Rd3+ {[%clk 0:00:08.5]} 32... Kc6 {[%clk 0:00:31.3]} 33. Re3
{[%clk 0:00:07.8]} 33... Kd7 {[%clk 0:00:27.7]} 34. Rd3 {[%clk 0:00:07.8]} 34...
Rb5 {[%clk 0:00:19.6]} 35. Kf3 {[%clk 0:00:05.4]} 35... Ke6 {[%clk 0:00:17.4]}
36. g4 {[%clk 0:00:05.4]} 36... hxg4+ {[%clk 0:00:14.1]} 37. hxg4 {[%clk
0:00:06]} 37... Rb8 {[%clk 0:00:09.3]} 38. g5 {[%clk 0:00:06]} 38... Bd4 {[%clk
0:00:09.1]} 39. Be3 {[%clk 0:00:05.7]} 39... Bg7 {[%clk 0:00:06.2]} 40. Bf2
{[%clk 0:00:05.9]} 40... Rh8 {[%clk 0:00:03.8]} 41. Re3+ {[%clk 0:00:06.4]}
41... Kf7 {[%clk 0:00:03.6]} 42. Re2 {[%clk 0:00:05.5]} 42... Rh1 {[%clk
0:00:01.9]} 43. Raa2 {[%clk 0:00:03.4]} 43... Rb1 {[%clk 0:00:01.5]} 44. Ra3
{[%clk 0:00:02.2]} 1-0

[Event "*** Titled Tuesday Blitz"]
[Site "Chess.com"]
[Date "2020.04.28"]
[Round "7"]
[White "vugarrasulov"]
[Black "Grischuk"]
[Result "0-1"]
[WhiteElo "2768"]
[BlackElo "3112"]
[TimeControl "180+1"]
[EndTime "11:18:53 PDT"]
[Termination "Grischuk won by resignation"]

1. e4 {[%clk 0:03:00.3]} 1... c5 {[%clk 0:02:59.7]} 2. Nf3 {[%clk 0:03:00]} 2...
d6 {[%clk 0:03:00]} 3. d4 {[%clk 0:03:00.5]} 3... cxd4 {[%clk 0:03:00.9]} 4.
Nxd4 {[%clk 0:03:01]} 4... Nf6 {[%clk 0:03:01.3]} 5. Nc3 {[%clk 0:03:01.5]} 5...
a6 {[%clk 0:03:02]} 6. Be3 {[%clk 0:03:02]} 6... e6 {[%clk 0:03:01.9]} 7. g4
{[%clk 0:02:59.2]} 7... h6 {[%clk 0:03:00.5]} 8. h3 {[%clk 0:02:57.2]} 8... b5
{[%clk 0:02:53.7]} 9. a3 {[%clk 0:02:52.8]} 9... Bb7 {[%clk 0:02:53.6]} 10. Bg2
{[%clk 0:02:48.5]} 10... Nbd7 {[%clk 0:02:53.6]} 11. Qe2 {[%clk 0:02:45.7]}
11... Rc8 {[%clk 0:02:52.4]} 12. O-O {[%clk 0:02:42.4]} 12... g5 {[%clk
0:02:41.3]} 13. Rad1 {[%clk 0:02:21.7]} 13... Ne5 {[%clk 0:02:31.9]} 14. f4
{[%clk 0:02:17.3]} 14... gxf4 {[%clk 0:02:32.8]} 15. Bxf4 {[%clk 0:02:16.5]}
15... Nfd7 {[%clk 0:02:32.9]} 16. Kh1 {[%clk 0:02:04.1]} 16... h5 {[%clk
0:01:13.7]} 17. g5 {[%clk 0:01:48.8]} 17... Ng6 {[%clk 0:01:13.9]} 18. Qf2
{[%clk 0:01:22.2]} 18... Nxf4 {[%clk 0:01:05.1]} 19. Qxf4 {[%clk 0:01:23.1]}
19... Qe7 {[%clk 0:01:04.9]} 20. Qf2 {[%clk 0:01:11.5]} 20... Ne5 {[%clk
0:00:55.7]} 21. Qg3 {[%clk 0:00:49.3]} 21... h4 {[%clk 0:00:53.6]} 22. Qf4
{[%clk 0:00:49.9]} 22... Bg7 {[%clk 0:00:44.8]} 23. Nd5 {[%clk 0:00:45.5]} 23...
exd5 {[%clk 0:00:42]} 24. Nf5 {[%clk 0:00:45]} 24... Qf8 {[%clk 0:00:41.9]} 25.
exd5 {[%clk 0:00:41.3]} 25... Rxc2 {[%clk 0:00:38.5]} 26. Rfe1 {[%clk
0:00:40.5]} 26... Kd8 {[%clk 0:00:32.4]} 27. Qd4 {[%clk 0:00:28.9]} 27... Kc7
{[%clk 0:00:24.5]} 28. Rc1 {[%clk 0:00:23]} 28... Rxc1 {[%clk 0:00:24.5]} 29.
Rxc1+ {[%clk 0:00:23.9]} 29... Kb8 {[%clk 0:00:25.2]} 30. Qb6 {[%clk 0:00:24.3]}
30... Nc4 {[%clk 0:00:24.5]} 31. Qf2 {[%clk 0:00:11.3]} 31... Nxb2 {[%clk
0:00:13.7]} 32. Nd4 {[%clk 0:00:09]} 32... Bxd4 {[%clk 0:00:08.4]} 33. Qxd4
{[%clk 0:00:09.9]} 33... Na4 {[%clk 0:00:07.9]} 34. Qf6 {[%clk 0:00:07.9]} 34...
Rg8 {[%clk 0:00:07.2]} 35. Be4 {[%clk 0:00:08.1]} 35... Qd8 {[%clk 0:00:06.7]}
36. Qxf7 {[%clk 0:00:07.1]} 36... Rxg5 {[%clk 0:00:04.1]} 37. Qf4 {[%clk
0:00:05.4]} 37... Re5 {[%clk 0:00:03.9]} 38. Bg2 {[%clk 0:00:05.5]} 38... Qe7
{[%clk 0:00:03]} 39. Rf1 {[%clk 0:00:04.1]} 39... Re1 {[%clk 0:00:02.8]} 0-1

[Event "*** Titled Tuesday Blitz"]
[Site "Chess.com"]
[Date "2020.04.28"]
[Round "7"]
[White "noblerone"]
[Black "BaMBoMaTTo"]
[Result "0-1"]
[WhiteElo "2444"]
[BlackElo "2637"]
[TimeControl "180+1"]
[EndTime "11:18:53 PDT"]
[Termination "BaMBoMaTTo won on time"]

1. d4 {[%clk 0:03:00.9]} 1... Nf6 {[%clk 0:02:59.7]} 2. Nf3 {[%clk 0:03:00.6]}
2... e6 {[%clk 0:02:59.5]} 3. Bg5 {[%clk 0:03:00.3]} 3... c5 {[%clk 0:02:44.9]}
4. e3 {[%clk 0:02:56.9]} 4... cxd4 {[%clk 0:02:44.8]} 5. exd4 {[%clk 0:02:57.3]}
5... b6 {[%clk 0:02:45.3]} 6. Nbd2 {[%clk 0:02:53]} 6... Bb7 {[%clk 0:02:45.3]}
7. Bd3 {[%clk 0:02:53.3]} 7... Be7 {[%clk 0:02:45.6]} 8. O-O {[%clk 0:02:52.9]}
8... O-O {[%clk 0:02:45.9]} 9. a4 {[%clk 0:02:51.2]} 9... a6 {[%clk 0:02:43.8]}
10. Re1 {[%clk 0:02:49.3]} 10... d6 {[%clk 0:02:44]} 11. Qe2 {[%clk 0:02:43.7]}
11... Nc6 {[%clk 0:02:42.7]} 12. c3 {[%clk 0:02:42.7]} 12... Re8 {[%clk
0:02:26]} 13. Nf1 {[%clk 0:02:25.5]} 13... Nd5 {[%clk 0:02:17.7]} 14. Bxe7
{[%clk 0:02:23.2]} 14... Rxe7 {[%clk 0:02:17.4]} 15. Bc2 {[%clk 0:02:04.9]}
15... g6 {[%clk 0:01:53.9]} 16. Ng3 {[%clk 0:02:02]} 16... Qf8 {[%clk
0:01:50.1]} 17. h4 {[%clk 0:01:56.8]} 17... Qh6 {[%clk 0:01:40.1]} 18. Rad1
{[%clk 0:01:50]} 18... e5 {[%clk 0:01:22.8]} 19. dxe5 {[%clk 0:01:34.9]} 19...
Nf4 {[%clk 0:01:22.3]} 20. Qd2 {[%clk 0:01:28.3]} 20... Nxe5 {[%clk 0:01:19.8]}
21. Nxe5 {[%clk 0:01:21.6]} 21... dxe5 {[%clk 0:01:20.7]} 22. Be4 {[%clk
0:01:18.5]} 22... Bxe4 {[%clk 0:01:12]} 23. Nxe4 {[%clk 0:01:17.1]} 23... f5
{[%clk 0:00:39.2]} 24. Nd6 {[%clk 0:00:28.8]} 24... Qxh4 {[%clk 0:00:35.7]} 25.
g3 {[%clk 0:00:21.1]} 25... Qg4 {[%clk 0:00:35.7]} 26. Qe3 {[%clk 0:00:15.6]}
26... Rf8 {[%clk 0:00:27.2]} 27. Nc4 {[%clk 0:00:11.2]} 27... Nh3+ {[%clk
0:00:26]} 28. Kg2 {[%clk 0:00:11.1]} 28... f4 {[%clk 0:00:26.9]} 29. Qf3 {[%clk
0:00:07.3]} 29... Qxf3+ {[%clk 0:00:19.8]} 30. Kxf3 {[%clk 0:00:08.2]} 30...
fxg3+ {[%clk 0:00:20]} 31. Kxg3 {[%clk 0:00:09.1]} 31... Nf4 {[%clk 0:00:16.2]}
32. Rxe5 {[%clk 0:00:06.6]} 32... Ref7 {[%clk 0:00:16.4]} 33. Re3 {[%clk
0:00:04.8]} 33... Nh5+ {[%clk 0:00:16.3]} 34. Kg4 {[%clk 0:00:04.8]} 34... Rxf2
{[%clk 0:00:17.2]} 35. Rd7 {[%clk 0:00:04.4]} 35... R2f4+ {[%clk 0:00:15]} 36.
Kh3 {[%clk 0:00:04.1]} 36... Rxc4 {[%clk 0:00:15.2]} 37. Ree7 {[%clk 0:00:03.8]}
37... Nf6 {[%clk 0:00:15.6]} 38. Ra7 {[%clk 0:00:03.4]} 38... Rxa4 {[%clk
0:00:14.8]} 39. Rg7+ {[%clk 0:00:02.1]} 39... Kh8 {[%clk 0:00:15]} 40. Rgb7
{[%clk 0:00:03]} 40... b5 {[%clk 0:00:15]} 0-1

[Event "*** Titled Tuesday Blitz"]
[Site "Chess.com"]
[Date "2020.04.28"]
[Round "7"]
[White "stasiek18"]
[Black "JulAnt"]
[Result "0-1"]
[WhiteElo "2338"]
[BlackElo "2511"]
[TimeControl "180+1"]
[EndTime "11:18:53 PDT"]
[Termination "JulAnt won on time"]

1. d4 {[%clk 0:03:00.9]} 1... Nf6 {[%clk 0:02:59.7]} 2. Bg5 {[%clk 0:03:00.8]}
2... e6 {[%clk 0:02:59.1]} 3. Nd2 {[%clk 0:02:59.2]} 3... d5 {[%clk 0:02:55.6]}
4. e3 {[%clk 0:02:58.6]} 4... Be7 {[%clk 0:02:55.7]} 5. Bd3 {[%clk 0:02:58.2]}
5... O-O {[%clk 0:02:55]} 6. f4 {[%clk 0:02:54]} 6... c5 {[%clk 0:02:53.3]} 7.
c3 {[%clk 0:02:54.1]} 7... c4 {[%clk 0:02:52.1]} 8. Bc2 {[%clk 0:02:52.9]} 8...
b5 {[%clk 0:02:52.7]} 9. Ngf3 {[%clk 0:02:52.3]} 9... a5 {[%clk 0:02:51.1]} 10.
O-O {[%clk 0:02:51.5]} 10... b4 {[%clk 0:02:51.1]} 11. Ne5 {[%clk 0:02:48.4]}
11... Bb7 {[%clk 0:02:49.1]} 12. Qf3 {[%clk 0:02:25.3]} 12... Nbd7 {[%clk
0:02:47.2]} 13. Qh3 {[%clk 0:02:08.3]} 13... Ne4 {[%clk 0:02:41.4]} 14. Bxe4
{[%clk 0:01:50.9]} 14... dxe4 {[%clk 0:02:40.7]} 15. Bxe7 {[%clk 0:01:48.7]}
15... Qxe7 {[%clk 0:02:40.6]} 16. Ndxc4 {[%clk 0:01:46.9]} 16... bxc3 {[%clk
0:02:34.8]} 17. bxc3 {[%clk 0:01:39.4]} 17... Nxe5 {[%clk 0:02:24.3]} 18. fxe5
{[%clk 0:01:19.9]} 18... Rac8 {[%clk 0:02:24]} 19. Nd6 {[%clk 0:01:19.9]} 19...
Rxc3 {[%clk 0:02:22]} 20. Rab1 {[%clk 0:01:15.1]} 20... Bd5 {[%clk 0:02:21.4]}
21. Rb2 {[%clk 0:01:07.2]} 21... Qd7 {[%clk 0:01:58.7]} 22. Rbf2 {[%clk
0:01:04.8]} 22... Qc6 {[%clk 0:01:41.3]} 23. Qg3 {[%clk 0:01:03.3]} 23... Rc1
{[%clk 0:01:37.1]} 24. h4 {[%clk 0:00:46.5]} 24... Rxf1+ {[%clk 0:01:27.5]} 25.
Rxf1 {[%clk 0:00:47.4]} 25... Bxa2 {[%clk 0:01:25.3]} 26. h5 {[%clk 0:00:47.5]}
26... h6 {[%clk 0:01:22.5]} 27. Qf4 {[%clk 0:00:38.1]} 27... Qd7 {[%clk
0:01:10.1]} 28. Nxe4 {[%clk 0:00:35.8]} 28... Bd5 {[%clk 0:00:46.5]} 29. Nc5
{[%clk 0:00:19.3]} 29... Qa7 {[%clk 0:00:37.6]} 30. g4 {[%clk 0:00:18.8]} 30...
Qe7 {[%clk 0:00:33.6]} 31. Ra1 {[%clk 0:00:15.1]} 31... Ra8 {[%clk 0:00:32.7]}
32. Kf2 {[%clk 0:00:10.9]} 32... Qe8 {[%clk 0:00:30.1]} 33. g5 {[%clk
0:00:09.2]} 33... hxg5 {[%clk 0:00:27.5]} 34. Qxg5 {[%clk 0:00:10.1]} 34... Qb5
{[%clk 0:00:23]} 35. h6 {[%clk 0:00:05.5]} 35... Qb2+ {[%clk 0:00:23]} 36. Kg3
{[%clk 0:00:05.3]} 36... Qg2+ {[%clk 0:00:15.2]} 37. Kh4 {[%clk 0:00:05.2]}
37... Qh2+ {[%clk 0:00:14.1]} 38. Kg4 {[%clk 0:00:05.4]} 38... Qg2+ {[%clk
0:00:11.3]} 39. Kh4 {[%clk 0:00:05.6]} 39... Qh2+ {[%clk 0:00:08]} 40. Kg4
{[%clk 0:00:05.8]} 40... g6 {[%clk 0:00:08.1]} 41. Rb1 {[%clk 0:00:03.1]} 41...
Kh7 {[%clk 0:00:06.8]} 42. Rb7 {[%clk 0:00:01.5]} 42... Rf8 {[%clk 0:00:05.9]}
0-1

[Event "*** Titled Tuesday Blitz"]
[Site "Chess.com"]
[Date "2020.04.28"]
[Round "7"]
[White "manmanlai1"]
[Black "tomsishere"]
[Result "1-0"]
[WhiteElo "2309"]
[BlackElo "2409"]
[TimeControl "180+1"]
[EndTime "11:18:53 PDT"]
[Termination "manmanlai1 won on time"]

1. e4 {[%clk 0:03:00.9]} 1... c6 {[%clk 0:02:59.3]} 2. d4 {[%clk 0:03:00.2]}
2... d5 {[%clk 0:02:59.4]} 3. exd5 {[%clk 0:03:01.1]} 3... cxd5 {[%clk 0:02:59]}
4. Bd3 {[%clk 0:03:01.7]} 4... Nf6 {[%clk 0:02:55.5]} 5. Bf4 {[%clk 0:02:58.3]}
5... e6 {[%clk 0:02:51.4]} 6. c3 {[%clk 0:02:57.7]} 6... Be7 {[%clk 0:02:40.8]}
7. Nd2 {[%clk 0:02:57.1]} 7... O-O {[%clk 0:02:40.4]} 8. Ngf3 {[%clk 0:02:52]}
8... Nc6 {[%clk 0:02:39.9]} 9. O-O {[%clk 0:02:51.9]} 9... Bd6 {[%clk 0:02:33]}
10. Bxd6 {[%clk 0:02:51]} 10... Qxd6 {[%clk 0:02:33.9]} 11. Qe2 {[%clk
0:02:51.4]} 11... a6 {[%clk 0:02:26.3]} 12. Rae1 {[%clk 0:02:41.7]} 12... b5
{[%clk 0:02:24.7]} 13. a3 {[%clk 0:02:41.3]} 13... Na5 {[%clk 0:02:09.6]} 14.
Ne5 {[%clk 0:02:40.5]} 14... Nc4 {[%clk 0:02:08.1]} 15. Ndf3 {[%clk 0:02:40.5]}
15... h6 {[%clk 0:02:04.2]} 16. Nh4 {[%clk 0:02:26.9]} 16... Qe7 {[%clk
0:01:57]} 17. Bb1 {[%clk 0:02:08]} 17... Bb7 {[%clk 0:01:36.1]} 18. Nd3 {[%clk
0:01:56.3]} 18... Ne4 {[%clk 0:01:33.2]} 19. Nf3 {[%clk 0:01:55.2]} 19... f6
{[%clk 0:01:25.6]} 20. Nf4 {[%clk 0:01:45.6]} 20... Qf7 {[%clk 0:01:21.1]} 21.
Rd1 {[%clk 0:01:38.9]} 21... Rae8 {[%clk 0:01:18.8]} 22. Nd3 {[%clk 0:01:37.8]}
22... Qc7 {[%clk 0:01:05.1]} 23. Nh4 {[%clk 0:01:34.1]} 23... Qf7 {[%clk
0:00:53.4]} 24. f3 {[%clk 0:01:33.3]} 24... Qh5 {[%clk 0:00:43.8]} 25. g3 {[%clk
0:01:27]} 25... g5 {[%clk 0:00:40.9]} 26. Ng2 {[%clk 0:01:23]} 26... Ned6 {[%clk
0:00:39.6]} 27. Nc5 {[%clk 0:01:14.5]} 27... Bc8 {[%clk 0:00:36.7]} 28. Qc2
{[%clk 0:01:09.6]} 28... Qf7 {[%clk 0:00:34.6]} 29. Qc1 {[%clk 0:00:59.3]} 29...
Kh8 {[%clk 0:00:31.7]} 30. b3 {[%clk 0:00:58.6]} 30... Nb6 {[%clk 0:00:30.9]}
31. f4 {[%clk 0:00:56.5]} 31... g4 {[%clk 0:00:28.9]} 32. f5 {[%clk 0:00:53.5]}
32... exf5 {[%clk 0:00:25.8]} 33. Qxh6+ {[%clk 0:00:53.2]} 33... Qh7 {[%clk
0:00:26.3]} 34. Qf4 {[%clk 0:00:48.8]} 34... Ne4 {[%clk 0:00:23.5]} 35. Nh4
{[%clk 0:00:43.5]} 35... Nxc3 {[%clk 0:00:18.6]} 36. Rde1 {[%clk 0:00:42.7]}
36... Ne2+ {[%clk 0:00:16.1]} 37. Rxe2 {[%clk 0:00:42.7]} 37... Rxe2 {[%clk
0:00:16.8]} 38. Qd6 {[%clk 0:00:41.2]} 38... Ree8 {[%clk 0:00:08.1]} 39. Qxb6
{[%clk 0:00:40]} 39... Qh5 {[%clk 0:00:06.5]} 40. Qd6 {[%clk 0:00:38.2]} 40...
f4 {[%clk 0:00:04.3]} 41. Qxf4 {[%clk 0:00:37.7]} 41... f5 {[%clk 0:00:04.4]}
42. Bd3 {[%clk 0:00:36.2]} 42... a5 {[%clk 0:00:03.9]} 43. b4 {[%clk 0:00:33.4]}
43... axb4 {[%clk 0:00:03.6]} 44. axb4 {[%clk 0:00:34.3]} 44... Re7 {[%clk
0:00:04.1]} 45. Bxb5 {[%clk 0:00:26.9]} 45... Rh7 {[%clk 0:00:03]} 46. Bc6
{[%clk 0:00:12.9]} 46... Rg7 {[%clk 0:00:02.3]} 47. Qe5 {[%clk 0:00:13]} 1-0

[Event "*** Titled Tuesday Blitz"]
[Site "Chess.com"]
[Date "2020.04.28"]
[Round "7"]
[White "Jbd735"]
[Black "ntmh281"]
[Result "1-0"]
[WhiteElo "2415"]
[BlackElo "2262"]
[TimeControl "180+1"]
[EndTime "11:18:53 PDT"]
[Termination "Jbd735 won on time"]

1. e4 {[%clk 0:03:00.9]} 1... e6 {[%clk 0:02:59.8]} 2. d4 {[%clk 0:03:00.8]}
2... d5 {[%clk 0:03:00.7]} 3. Nd2 {[%clk 0:03:00.8]} 3... Be7 {[%clk 0:03:00.5]}
4. e5 {[%clk 0:02:57.4]} 4... c5 {[%clk 0:02:59.1]} 5. c3 {[%clk 0:02:56.9]}
5... Nc6 {[%clk 0:02:59.2]} 6. Ngf3 {[%clk 0:02:36]} 6... Nh6 {[%clk 0:02:54.9]}
7. Bd3 {[%clk 0:02:32.2]} 7... Qb6 {[%clk 0:02:49.6]} 8. dxc5 {[%clk 0:02:17.2]}
8... Bxc5 {[%clk 0:02:47.8]} 9. O-O {[%clk 0:02:17.1]} 9... Ng4 {[%clk
0:02:45.1]} 10. Qe2 {[%clk 0:02:16.9]} 10... Qc7 {[%clk 0:02:27.9]} 11. Nb3
{[%clk 0:02:05.5]} 11... Bb6 {[%clk 0:01:58.6]} 12. Bf4 {[%clk 0:02:04.3]} 12...
f6 {[%clk 0:01:36.7]} 13. Bb5 {[%clk 0:01:27.8]} 13... Bd7 {[%clk 0:01:18.9]}
14. Bxc6 {[%clk 0:01:21.7]} 14... bxc6 {[%clk 0:01:18]} 15. Bg3 {[%clk
0:01:16.3]} 15... f5 {[%clk 0:01:14.6]} 16. Bf4 {[%clk 0:00:44.4]} 16... O-O
{[%clk 0:00:59.9]} 17. h3 {[%clk 0:00:44.4]} 17... Nh6 {[%clk 0:00:59.3]} 18.
Bxh6 {[%clk 0:00:45.1]} 18... gxh6 {[%clk 0:00:58.4]} 19. Nc1 {[%clk 0:00:45.7]}
19... c5 {[%clk 0:00:53.2]} 20. Nd3 {[%clk 0:00:45.7]} 20... Bb5 {[%clk
0:00:52.8]} 21. Qd2 {[%clk 0:00:46]} 21... Qg7 {[%clk 0:00:47.5]} 22. a4 {[%clk
0:00:44.6]} 22... Bc4 {[%clk 0:00:42.5]} 23. a5 {[%clk 0:00:42.8]} 23... Bc7
{[%clk 0:00:18.8]} 24. Rfe1 {[%clk 0:00:41.9]} 24... Rac8 {[%clk 0:00:15.4]} 25.
Nf4 {[%clk 0:00:41.5]} 25... Rfe8 {[%clk 0:00:15.1]} 26. Ra3 {[%clk 0:00:37.4]}
26... Kh8 {[%clk 0:00:12.9]} 27. b3 {[%clk 0:00:36.8]} 27... Bb5 {[%clk
0:00:12.1]} 28. Qe3 {[%clk 0:00:30.7]} 28... Bb8 {[%clk 0:00:10.4]} 29. Kh1
{[%clk 0:00:24.5]} 29... Re7 {[%clk 0:00:10.7]} 30. Ra2 {[%clk 0:00:22.3]} 30...
Rg8 {[%clk 0:00:10.7]} 31. g3 {[%clk 0:00:19.8]} 31... Rc8 {[%clk 0:00:07.6]}
32. Nh5 {[%clk 0:00:19.1]} 32... Qg6 {[%clk 0:00:07.4]} 33. Nf4 {[%clk
0:00:17.6]} 33... Qg7 {[%clk 0:00:07]} 34. Kh2 {[%clk 0:00:17.8]} 34... Qf7
{[%clk 0:00:06.7]} 35. Nh4 {[%clk 0:00:16.1]} 35... Be8 {[%clk 0:00:06.3]} 36.
Qf3 {[%clk 0:00:15]} 36... Rb7 {[%clk 0:00:03.6]} 37. Rb2 {[%clk 0:00:13.5]}
37... Bc7 {[%clk 0:00:03.6]} 38. Qe3 {[%clk 0:00:10.2]} 38... Bxa5 {[%clk
0:00:03]} 39. Ra1 {[%clk 0:00:09.3]} 39... Bd8 {[%clk 0:00:02.9]} 40. Nf3 {[%clk
0:00:08.7]} 40... c4 {[%clk 0:00:01.8]} 41. b4 {[%clk 0:00:07.5]} 41... a5
{[%clk 0:00:02.5]} 42. Nd4 {[%clk 0:00:05.1]} 42... axb4 {[%clk 0:00:03.4]} 43.
Ndxe6 {[%clk 0:00:04.5]} 43... b3 {[%clk 0:00:02.9]} 44. Nd4 {[%clk 0:00:02.9]}
44... Be7 {[%clk 0:00:01.7]} 45. e6 {[%clk 0:00:03.8]} 45... Qf6 {[%clk
0:00:01.7]} 46. Nh5 {[%clk 0:00:04.1]} 1-0